bitfinex/quotes_ETHUSD_20251017
["timestamp","ask_amount","ask_price","bid_price","bid_amount"]
[1760728896845,2.59605399,3852.0,3851.6,0.2339]
[1760728897028,1.728,3851.9,3851.7,0.4402]
[1760728897229,4.32412139,3851.9,3851.6,0.2339]
[1760728897443,1.728,3851.8,3851.6,0.6741]
[1760728897857,1.728,3852.4,3851.7,0.4402]
[1760728898072,1.728,3851.8,3851.7,0.4402]
[1760728898240,1.728,3851.9,3851.7,0.4402]
[1760728898547,2.59613346,3851.9,3851.7,0.4402]
[1760728898760,2.59591921,3852.2,3851.6,0.2339]
[1760728898761,1.728,3852.1,3851.8,0.4402]
[1760728898934,0.28638119,3852.5,3851.8,0.4402]
[1760728899124,1.728,3852.2,3851.6,0.2339]
[1760728899325,4.32391921,3852.2,3851.6,0.2339]
[1760728899525,2.59612334,3851.9,3851.6,0.2339]
[1760728899950,1.728,3851.7,3851.6,0.2339]
[1760728900179,2.5961916,3851.8,3851.0,0.2339]
[1760728900180,2.5964114,3851.5,3851.0,0.2339]
[1760728900476,2.59647142,3851.4,3851.0,0.2339]
[1760728900651,1.728,3851.1,3850.5,0.4402]
[1760728900854,0.02600592,3851.0,3850.1,0.2339]
[1760728901104,1.8814,3851.2,3850.1,0.2339]
[1760728901389,2.59693245,3850.7,3850.2,0.4412]
[1760728901755,0.1534,3851.2,3850.4,0.4402]
[1760728901756,4.47799517,3851.2,3850.4,0.4402]
[1760728901957,2.59681555,3850.9,3850.4,0.4402]
[1760728902152,0.1296,3850.7,3850.4,0.4402]
[1760728902481,2.72654422,3850.7,3850.2,0.001]
[1760728902646,2.72654422,3850.7,3850.4,0.4402]
[1760728902850,2.72654422,3850.7,3850.5,0.4402]
[1760728903074,2.72654422,3850.7,3850.6,0.4402]
[1760728903385,2.72654422,3850.7,3850.2,0.4412]
[1760728903688,2.72654422,3850.7,3850.3,0.4412]
[1760728903886,0.1296,3850.7,3850.3,0.4412]
[1760728904084,2.59704308,3850.6,3850.3,0.001]
[1760728904452,2.59713276,3850.4,3850.3,0.001]
[1760728905683,4.86010746,3850.4,3850.3,0.001]
[1760728905853,4.95910746,3850.4,3850.3,0.001]
[1760728906056,22.75105546,3850.4,3850.3,0.001]
[1760728906357,20.75105546,3850.4,3850.3,0.001]
[1760728906576,19.75105546,3850.4,3850.3,0.001]
[1760728906774,18.85155546,3850.4,3850.3,0.001]
[1760728906954,1.728,3850.4,3850.3,0.001]
[1760728907399,1.728,3850.4,3850.3,0.4412]
[1760728908887,1.728,3850.4,3850.3,0.001]
[1760728909402,4.32513276,3850.4,3850.3,0.001]
[1760728909714,4.35113868,3850.4,3850.3,0.001]
[1760728909916,5.06881462,3850.4,3850.3,0.001]
[1760728910513,5.0428087,3850.4,3850.3,0.001]
[1760728910709,5.06881462,3850.4,3850.3,0.001]
[1760728910912,5.1418087,3850.4,3850.3,0.001]
[1760728911217,5.0428087,3850.4,3850.3,0.001]
[1760728913213,5.1418087,3850.4,3850.3,0.001]
[1760728913833,24.4588967,3850.4,3850.3,0.001]
[1760728914605,20.0532807,3850.4,3850.3,0.001]
[1760728914949,20.0511447,3850.4,3850.3,0.001]
[1760728915141,11.8426367,3850.4,3850.3,0.001]
[1760728916042,13.4217267,3850.4,3850.3,0.001]
[1760728916239,12.7680767,3850.4,3850.3,0.001]
[1760728916416,8.6991197,3850.4,3850.3,0.001]
[1760728916617,8.6001197,3850.4,3850.3,0.001]
[1760728916815,9.5003677,3850.4,3850.3,0.001]
[1760728917637,5.0428087,3850.4,3850.3,0.001]
[1760728918041,5.1418087,3850.4,3850.3,0.001]
[1760728918652,11.5318087,3850.4,3850.3,0.001]
[1760728918845,33.1287317,3850.4,3850.3,0.001]
[1760728919010,32.2921937,3850.4,3850.3,0.001]
[1760728919513,20.5968667,3850.4,3850.3,0.001]
[1760728920142,16.5590607,3850.4,3850.3,0.001]
[1760728920314,13.4771257,3850.4,3850.3,0.001]
[1760728920742,16.6656257,3850.4,3850.3,0.001]
[1760728920926,15.3831257,3850.4,3850.3,0.001]
[1760728921123,15.1761257,3850.4,3850.3,0.001]
[1760728921327,13.9181257,3850.4,3850.3,0.001]
[1760728921741,21.0904987,3850.4,3850.3,0.001]
[1760728922140,21.1894987,3850.4,3850.3,0.001]
[1760728922856,23.8618407,3850.4,3850.3,0.001]
[1760728923032,22.5606687,3850.4,3850.3,0.001]
[1760728923232,13.4567427,3850.4,3850.3,0.001]
[1760728923853,22.6330977,3850.4,3850.3,0.001]
[1760728924021,20.0570977,3850.4,3850.3,0.001]
[1760728924354,4.32513276,3850.4,3850.3,0.001]
[1760728924957,4.35113868,3850.4,3850.3,0.001]
[1760728925140,17.81340676,3850.4,3850.3,0.001]
[1760728925452,4.32513276,3850.4,3850.3,0.001]
[1760728925865,4.32513276,3850.4,3850.3,0.4513]
[1760728926731,4.32513276,3850.4,3850.3,0.001]
[1760728927142,7.24502211,3850.4,3850.3,0.001]
[1760728927858,4.32513276,3850.4,3850.3,0.4513]
[1760728929666,4.32513276,3850.4,3850.3,0.001]
[1760728931148,4.35113868,3850.4,3850.3,0.001]
[1760728933390,2.59740259,3850.0,3849.9,1e-08]
[1760728933687,44.9068625,3850.0,3849.9,1e-08]
[1760728933851,45.0063625,3850.0,3849.9,1e-08]
[1760728934564,52.5517325,3850.0,3849.9,1e-08]
[1760728934876,48.66454037,3850.0,3849.9,1e-08]
[1760728935077,48.35077437,3850.0,3849.9,1e-08]
[1760728935277,47.10027737,3850.0,3849.9,1e-08]
[1760728935442,35.54216512,3850.0,3849.9,1e-08]
[1760728935790,13.69629712,3850.0,3849.9,1e-08]
[1760728935970,10.31460812,3850.0,3849.9,1e-08]
[1760728936547,15.14929512,3850.0,3849.9,1e-08]
[1760728936788,15.24879512,3850.0,3849.9,1e-08]
[1760728937079,15.54747525,3850.0,3849.9,1e-08]
[1760728937486,1.728,3849.7,3848.1,0.4513]
[1760728937686,50.57292845,3849.6,3848.1,0.4513]
[1760728937861,50.94700266,3849.6,3848.1,0.4513]
[1760728938387,2.59861753,3848.2,3848.1,0.001]
[1760728938587,4.32661753,3848.2,3848.1,0.001]
[1760728940088,4.32661753,3848.2,3848.1,0.6722]
[1760728940577,4.32661753,3848.2,3848.1,0.001]
[1760728941064,4.35262345,3848.2,3848.1,0.001]
[1760728941395,14.52824254,3848.2,3848.1,0.001]
[1760728941566,11.86204454,3848.2,3848.1,0.001]
[1760728942165,11.96374454,3848.2,3848.1,0.001]
[1760728942500,17.33707354,3848.2,3848.1,0.001]
[1760728943466,32.98821654,3848.2,3848.1,0.001]
[1760728943665,28.52735954,3848.2,3848.1,0.001]
[1760728943971,27.31154954,3848.2,3848.1,0.001]
[1760728944484,33.81322254,3848.2,3848.1,0.001]
[1760728944794,30.56648123,3848.2,3848.1,0.001]
[1760728945219,27.69223423,3848.2,3848.1,0.001]
[1760728945419,13.46485723,3848.2,3848.1,0.001]
[1760728946416,18.92896023,3848.2,3848.1,0.001]
[1760728947616,19.12363023,3848.2,3848.1,0.001]
[1760728947817,19.22533023,3848.2,3848.1,0.001]
[1760728948000,17.80008723,3848.2,3848.1,0.001]
[1760728948302,7.54569223,3848.2,3848.1,0.001]
[1760728948626,7.14725523,3848.2,3848.1,0.001]
[1760728949508,12.26468123,3848.2,3848.1,0.001]
[1760728949712,11.79967223,3848.2,3848.1,0.001]
[1760728949895,9.09300154,3848.2,3848.1,0.001]
[1760728950402,7.34512354,3848.2,3848.1,0.001]
[1760728950605,7.57912354,3848.2,3848.1,0.001]
[1760728950806,7.57912354,3848.2,3848.1,0.6523]
[1760728951002,7.57912354,3848.2,3848.1,0.001]
[1760728951394,7.87780367,3848.2,3848.1,0.001]
[1760728951595,34.86519267,3848.2,3848.1,0.001]
[1760728951828,31.50497154,3848.2,3848.1,0.001]
[1760728952229,24.77995754,3848.2,3848.1,0.001]
[1760728952549,20.73566554,3848.2,3848.1,0.001]
[1760728953633,25.68247754,3848.2,3848.1,0.001]
[1760728954154,32.07247754,3848.2,3848.1,0.001]
[1760728954645,41.11979954,3848.2,3848.1,0.001]
[1760728954811,26.75551554,3848.2,3848.1,0.001]
[1760728955437,26.41108954,3848.2,3848.1,0.001]
[1760728955749,25.85884454,3848.2,3848.1,0.001]
[1760728956051,25.96309523,3848.2,3848.1,0.001]
[1760728956550,11.52654223,3848.2,3848.1,0.001]
[1760728956751,34.76998423,3848.2,3848.1,0.001]
[1760728956926,28.94248823,3848.2,3848.1,0.001]
[1760728957126,27.34535823,3848.2,3848.1,0.001]
[1760728957857,28.32901323,3848.2,3848.1,0.001]
[1760728958037,28.72939336,3848.2,3848.1,0.001]
[1760728958707,41.92692236,3848.2,3848.1,0.001]
[1760728959914,41.62824223,3848.2,3848.1,0.001]
[1760728960241,41.52654223,3848.2,3848.1,0.001]
[1760728960452,41.62824223,3848.2,3848.1,0.001]
[1760728961549,40.53319723,3848.2,3848.1,0.001]
[1760728961844,37.06049123,3848.2,3848.1,0.001]
[1760728962051,23.39821023,3848.2,3848.1,0.001]
[1760728962721,23.05813023,3848.2,3848.1,0.001]
[1760728963318,34.32709031,3847.5,3847.4,0.001]
[1760728963719,34.42929031,3847.5,3847.4,0.001]
[1760728963924,34.53356817,3847.5,3847.4,0.001]
[1760728964355,34.43136817,3847.5,3847.4,0.001]
[1760728966455,28.85116117,3847.5,3847.4,0.001]
[1760728966658,8.38853597,3847.5,3847.4,0.001]
[1760728966860,13.36652397,3847.5,3847.4,0.001]
[1760728967424,5.31574797,3847.5,3847.4,0.001]
[1760728967625,2.70336817,3847.5,3847.4,0.4325]
[1760728967843,18.45551409,3847.5,3847.4,0.001]
[1760728968050,18.42950817,3847.5,3847.4,0.001]
[1760728968261,18.53256396,3847.5,3847.4,0.001]
[1760728968962,30.70385396,3847.5,3847.4,0.001]
[1760728969960,35.78676296,3847.5,3847.4,0.001]
[1760728970464,33.69982696,3847.5,3847.4,0.001]
[1760728970662,40.08982696,3847.5,3847.4,0.001]
[1760728970965,43.03876996,3847.5,3847.4,0.001]
[1760728971874,13.03876996,3847.5,3847.4,0.001]
[1760728972070,43.03876996,3847.5,3847.4,0.001]
[1760728972669,36.64876996,3847.5,3847.4,0.001]
[1760728973970,30.24762885,3846.7,3846.5,0.4315]
[1760728974276,20.55810153,3846.7,3846.5,0.4315]
[1760728974443,14.97282453,3846.7,3845.4,2.60044543]
[1760728974771,15.40432453,3846.7,3846.6,0.4534]
[1760728974959,15.05472153,3846.7,3846.6,0.4534]
[1760728975161,2.6000364,3846.1,3843.4,3.20179838]
[1760728975371,13.37617904,3846.1,3844.3,2.60119529]
[1760728975566,11.15882604,3846.1,3844.5,2.60108744]
[1760728975769,11.37972604,3846.1,3844.4,0.02601186]
[1760728975968,11.37972604,3846.1,3844.5,2.60111667]
[1760728976178,0.2209,3846.1,3844.6,0.0260105]
[1760728976345,2.59852963,3848.4,3845.5,1.728]
[1760728976675,1.728,3848.1,3846.4,2.59982152]
[1760728976840,1.728,3848.4,3846.7,2.59962842]
[1760728977169,2.59900673,3847.7,3846.8,0.1796]
[1760728977375,2.59903226,3847.6,3846.9,2.59948976]
[1760728977573,6.475016,3848.2,3847.0,0.1796]
[1760728977770,2.59851142,3848.4,3847.6,2.59896047]
[1760728977970,0.2209,3848.6,3847.7,0.69940936]
[1760728978172,0.13225084,3848.7,3847.8,0.1796]
[1760728978541,0.13225084,3848.7,3847.9,0.327561]
[1760728978746,0.13225084,3848.7,3847.3,2.59921375]
[1760728978747,2.59788987,3849.3,3848.3,2.59853272]
[1760728978974,0.002,3849.5,3847.4,1.728]
[1760728978975,0.002,3849.5,3849.2,0.1796]
[1760728979296,4.32584592,3849.4,3849.2,0.1796]
[1760728979448,2.59787493,3849.3,3849.2,0.1796]
[1760728979643,2.59780791,3849.4,3849.2,0.3592]
[1760728979880,0.002,3849.5,3849.3,0.1796]
[1760728980059,2.59979466,3849.5,3849.3,0.1796]
[1760728980361,0.002,3849.5,3849.2,0.1796]
[1760728980558,0.002,3849.5,3849.4,0.1796]
[1760728980758,2.59973996,3849.5,3849.4,0.1796]
[1760728981170,0.002,3849.5,3849.4,0.1796]
[1760728984577,0.002,3849.5,3849.4,2.77740745]
[1760728984879,0.002,3849.5,3849.4,0.73769193]
[1760728985077,0.002,3849.5,3849.4,3.33549938]
[1760728985269,0.002,3849.5,3849.4,0.73769193]
[1760728985469,0.002,3849.5,3849.4,3.33549938]
[1760728987802,0.02800592,3849.5,3848.6,0.1796]
[1760728987967,0.02800592,3849.5,3847.8,0.1796]
[1760728987968,14.97284,3849.2,3848.1,0.1796]
[1760728988294,2.59861753,3848.2,3848.1,0.1796]
[1760728988475,2.59844694,3848.5,3848.1,0.1796]
[1760728988677,2.1972,3849.2,3848.1,0.1796]
[1760728988678,2.59861753,3848.2,3848.1,0.1796]
[1760728988887,2.59894405,3847.8,3847.5,0.1796]
[1760728989078,2.59883922,3847.9,3847.7,0.1796]
[1760728989279,2.59888767,3847.8,3847.7,0.1796]
[1760728989490,2.59875259,3848.0,3847.7,0.1796]
[1760728989794,1.9532,3848.7,3847.7,0.1796]
[1760728989962,1.728,3848.5,3847.8,0.1796]
[1760728990164,2.59861255,3848.3,3847.8,0.1796]
[1760728990363,2.59873478,3848.1,3847.7,0.1796]
[1760728990668,2.59861255,3848.3,3847.7,0.1796]
[1760728990867,2.59869914,3848.1,3847.7,0.3592]
[1760728991064,0.2252,3848.9,3847.7,0.65513492]
[1760728991269,2.59867201,3848.2,3847.7,0.3592]
[1760728991568,2.59867138,3848.2,3847.7,0.1796]
[1760728991790,2.59869364,3848.1,3847.7,0.1796]
[1760728992197,2.59888767,3847.8,3847.7,0.1796]
[1760728992395,2.59901256,3847.7,3847.4,0.001]
[1760728993500,2.59874742,3848.1,3847.4,0.001]
[1760728993698,2.59865585,3848.2,3847.4,0.001]
[1760728993864,0.4692,3848.3,3847.4,0.001]
[1760728994071,2.59894575,3847.8,3847.4,0.001]
[1760728994297,0.4692,3848.3,3847.4,0.001]
[1760728994601,2.59893395,3847.8,3847.4,0.001]
[1760728994789,2.59884314,3847.9,3847.4,0.001]
[1760728994984,2.59890659,3847.8,3847.4,0.001]
[1760728995798,2.5988378,3847.9,3847.4,0.001]
[1760728996184,2.59889875,3847.8,3847.4,0.001]
[1760728997704,2.59897955,3847.7,3847.4,0.001]
[1760728997905,0.8541384,3848.3,3847.4,0.001]
[1760728998089,2.59893994,3847.8,3847.4,0.001]
[1760728998492,0.4692,3848.3,3847.4,0.001]
[1760728998493,2.59902155,3847.7,3847.4,0.001]
[1760728998877,2.59893225,3847.8,3847.4,0.001]
[1760728999207,0.1296,3847.6,3847.4,0.1807]
[1760728999400,0.1296,3847.6,3847.5,2.59909031]
[1760728999707,0.1296,3847.6,3847.5,0.55586143]
[1760729001817,1.728,3848.6,3847.5,0.55586143]
[1760729001818,0.6978,3848.9,3847.7,2.59890537]
[1760729001996,0.1296,3847.9,3847.7,2.59890537]
[1760729002489,0.1296,3847.9,3847.5,0.1797]
[1760729002815,0.1296,3847.9,3847.5,2.77874449]
[1760729003007,0.1296,3847.9,3847.6,0.55585473]
[1760729003711,0.1296,3847.9,3847.6,3.15485848]
[1760729003916,0.1296,3847.9,3847.7,2.59894096]
[1760729004317,0.1296,3847.9,3847.6,3.15486445]
[1760729004713,0.1296,3847.9,3847.6,0.55585473]
[1760729005220,0.1296,3847.9,3847.7,0.31219232]
[1760729005417,0.1296,3847.9,3847.4,2.6001552]
[1760729005810,2.5987619,3848.0,3847.4,2.6001552]
[1760729006119,3.07115756,3848.3,3847.4,2.6001552]
[1760729006120,0.1296,3847.7,3847.4,2.6001552]
[1760729006687,2.72856079,3847.7,3847.4,0.001]
[1760729006922,0.4726,3847.6,3847.4,0.001]
[1760729007227,2.59909031,3847.5,3847.4,0.001]
[1760729007405,2.59901135,3847.7,3847.4,0.001]
[1760729007406,2.81894606,3847.8,3847.4,0.001]
[1760729007917,1.728,3848.2,3847.4,0.001]
[1760729008118,4.32662868,3848.2,3847.4,0.001]
[1760729008819,2.59882472,3847.9,3847.4,0.001]
[1760729009120,0.4726,3848.1,3847.4,0.001]
[1760729009424,0.4726,3848.1,3847.4,2.60015631]
[1760729009724,2.59880205,3848.0,3847.4,0.001]
[1760729009923,2.59883584,3847.9,3847.4,0.001]
[1760729011718,2.59888767,3847.8,3847.4,0.001]
[1760729012314,2.59896466,3847.7,3847.4,0.001]
[1760729012516,2.59903841,3847.6,3847.4,0.001]
[1760729013921,3.07163841,3847.6,3847.4,0.001]
[1760729014124,3.07169031,3847.5,3847.4,0.001]
[1760729014794,3.66476096,3847.5,3847.4,0.001]
[1760729014997,10.35912504,3847.5,3847.4,0.001]
[1760729016096,10.32561704,3847.5,3847.4,0.001]
[1760729016922,7.46092304,3847.5,3847.4,0.001]
[1760729017143,8.84335504,3847.5,3847.4,0.001]
[1760729018135,5.49368431,3847.5,3847.4,0.001]
[1760729018340,5.36675504,3847.5,3847.4,0.001]
[1760729019840,5.47100545,3847.5,3847.4,0.001]
[1760729021349,1.728,3847.5,3847.4,0.001]
[1760729022137,0.002,3847.6,3847.4,0.001]
[1760729024758,0.1316,3847.6,3847.5,0.1797]
[1760729025237,0.002,3847.6,3847.4,0.001]
[1760729025809,0.002,3847.6,3847.5,0.1797]
[1760729026014,0.002,3847.6,3847.4,0.001]
[1760729027262,0.002,3847.6,3847.5,0.27298167]
[1760729027845,2.60102276,3847.6,3847.5,0.27298167]
[1760729028049,2.59909031,3847.5,3847.4,0.001]
[1760729028257,0.1316,3847.6,3847.4,0.001]
[1760729028420,3.09769623,3847.5,3847.4,0.001]
[1760729028621,3.07169031,3847.5,3847.4,0.001]
[1760729030686,4.82569623,3847.5,3847.4,0.001]
[1760729030974,12.20037666,3847.5,3847.4,0.001]
[1760729031274,12.17437074,3847.5,3847.4,0.001]
[1760729031557,5.59414974,3847.5,3847.4,0.001]
[1760729031747,7.64714974,3847.5,3847.4,0.001]
[1760729032137,5.59414974,3847.5,3847.4,0.001]
[1760729034362,13.58213474,3847.5,3847.4,0.001]
[1760729034549,5.59414974,3847.5,3847.4,0.001]
[1760729034726,34.93594374,3847.5,3847.4,0.001]
[1760729034927,34.33520574,3847.5,3847.4,0.001]
[1760729035662,34.49889074,3847.5,3847.4,0.001]
[1760729036164,29.18057074,3847.5,3847.4,0.001]
[1760729036835,32.13454974,3847.5,3847.4,0.001]
[1760729037664,31.09514274,3847.5,3847.4,0.001]
[1760729038877,35.59614974,3847.5,3847.4,0.001]
[1760729039977,26.07743874,3847.5,3847.4,0.001]
[1760729040974,14.73240174,3847.5,3847.4,0.001]
[1760729041188,5.12354974,3847.5,3847.4,0.001]
[1760729041476,23.46010774,3847.5,3847.4,0.001]
[1760729041678,8.48684974,3847.5,3847.4,0.001]
[1760729041982,13.45087274,3847.5,3847.4,0.001]
[1760729042547,12.69587274,3847.5,3847.4,0.001]
[1760729042947,38.43781674,3847.5,3847.4,0.001]
[1760729043364,37.74337774,3847.5,3847.4,0.001]
[1760729043561,36.96595274,3847.5,3847.4,0.001]
[1760729043779,36.75138874,3847.5,3847.4,0.001]
[1760729043985,36.75147174,3847.5,3847.4,0.001]
[1760729044385,31.19946174,3847.5,3847.4,0.001]
[1760729045192,30.44946374,3847.5,3847.4,0.001]
[1760729045483,29.83991974,3847.5,3847.4,0.001]
[1760729045687,28.52878374,3847.5,3847.4,0.001]
[1760729045986,19.04110074,3847.5,3847.4,0.001]
[1760729046183,19.97595674,3847.5,3847.4,0.001]
[1760729046589,14.55803974,3847.5,3847.4,0.001]
[1760729047171,18.34586074,3847.5,3847.4,0.001]
[1760729047383,16.73833174,3847.5,3847.4,0.001]
[1760729047693,11.51354974,3847.5,3847.4,0.001]
[1760729047894,2.60109031,3847.5,3847.4,0.001]
[1760729048266,4.32909031,3847.5,3847.4,0.001]
[1760729049299,1.73,3847.5,3847.4,0.001]
[1760729049599,0.002,3847.6,3847.5,2.59909031]
[1760729049782,0.002,3847.6,3847.5,2.62508121]
[1760729049966,0.002,3847.6,3847.5,3.14761183]
[1760729050168,0.002,3847.6,3847.5,3.12162093]
[1760729050671,0.002,3847.6,3847.5,4.87561183]
[1760729051465,0.002,3847.6,3847.5,5.21903042]
[1760729051670,0.002,3847.6,3847.5,5.19303952]
[1760729052903,0.002,3847.6,3847.5,4.84962093]
[1760729053498,0.002,3847.6,3847.5,4.87561183]
[1760729054099,0.002,3847.6,3847.5,4.84962093]
[1760729054502,0.002,3847.6,3847.5,2.25053062]
[1760729054818,0.002,3847.6,3847.5,0.52253062]
[1760729054977,0.002,3847.6,3847.4,0.001]
[1760729055173,0.002,3847.6,3847.4,2.60010011]
[1760729055390,0.002,3847.6,3847.5,2.59909031]
[1760729057105,0.002,3847.6,3847.4,0.001]
[1760729057405,0.002,3847.6,3847.5,2.59909031]
[1760729057733,0.002,3847.6,3847.5,3.11902053]
[1760729057892,0.002,3847.6,3847.5,0.51993022]
[1760729058094,0.002,3847.6,3847.4,0.001]
[1760729058303,3.04439031,3847.5,3847.4,0.001]
[1760729059018,2.59909031,3847.5,3847.4,0.001]
[1760729059185,0.002,3847.6,3847.4,0.001]
[1760729059380,0.1296,3847.5,3847.4,0.001]
[1760729060310,2.72869031,3847.5,3847.4,0.001]
[1760729060522,3.17399031,3847.5,3847.4,0.001]
[1760729062631,0.5749,3847.5,3847.4,0.001]
[1760729062813,3.17399031,3847.5,3847.4,0.001]
[1760729064801,3.19999623,3847.5,3847.4,0.001]
[1760729065024,3.75408694,3847.5,3847.4,0.001]
[1760729065245,3.17399031,3847.5,3847.4,0.001]
[1760729066706,2.59936055,3847.1,3847.0,0.001]
[1760729067026,20.30471785,3846.7,3846.6,0.001]
[1760729067189,17.43893785,3846.7,3846.6,0.001]
[1760729067393,17.12327551,3846.7,3846.6,0.001]
[1760729067607,35.44364551,3846.7,3846.6,0.001]
[1760729067807,12.12349451,3846.7,3846.6,0.001]
[1760729068824,18.25544651,3846.7,3846.6,0.001]
[1760729069021,15.00711751,3846.7,3846.6,0.001]
[1760729069227,11.94677051,3846.7,3846.6,0.001]
[1760729069930,37.22168162,3846.7,3846.6,0.001]
[1760729071216,34.10881151,3846.7,3846.6,0.001]
[1760729071419,2.60023922,3845.8,3844.2,0.0021]
[1760729071730,34.58826314,3845.8,3844.0,0.0021]
[1760729071911,35.17925135,3845.8,3844.0,0.0021]
[1760729073112,35.17925135,3845.8,3843.6,0.0021]
[1760729074594,34.52149235,3845.8,3843.9,0.0021]
[1760729074793,35.17925135,3845.8,3843.9,0.0021]
[1760729075491,34.87070035,3845.8,3843.9,0.0021]
[1760729075905,34.44013535,3845.8,3843.9,0.0021]
[1760729076128,27.08216335,3845.8,3844.2,0.0021]
[1760729076839,5.17925135,3845.8,3844.2,0.0021]
[1760729077045,31.85717535,3845.8,3844.2,0.0021]
[1760729077859,31.98677535,3845.8,3844.2,0.0021]
[1760729078159,35.30885135,3845.8,3844.2,0.0021]
[1760729078938,35.67212346,3845.8,3843.3,0.1296]
[1760729079246,35.67212346,3845.8,3844.0,0.0021]
[1760729080264,35.67212346,3845.8,3843.6,2.60171482]
[1760729080435,35.67212346,3845.8,3844.2,0.0021]
[1760729080636,12.00208835,3845.8,3844.6,0.0021]
[1760729081046,18.20313135,3845.8,3844.6,0.0021]
[1760729081336,16.92063135,3845.8,3844.6,0.0021]
[1760729081537,16.92063135,3845.8,3843.6,2.60170069]
[1760729081733,16.92063135,3845.8,3844.2,0.0021]
[1760729081933,5.30885135,3845.8,3844.2,0.0021]
[1760729082137,30.26433935,3845.8,3844.2,0.0021]
[1760729082731,30.62761146,3845.8,3843.3,0.1296]
[1760729083079,35.67212346,3845.8,3843.9,0.0021]
[1760729085041,35.67212346,3845.8,3844.1,0.0021]
[1760729085464,22.82854435,3845.8,3844.4,0.0021]
[1760729086288,30.86514435,3845.8,3844.4,0.0021]
[1760729087252,31.51845535,3845.8,3844.4,0.0021]
[1760729088358,31.00962635,3845.8,3844.4,0.0021]
[1760729088946,31.37289846,3845.8,3844.4,0.0021]
[1760729089152,31.37289846,3845.8,3844.1,0.0021]
[1760729089348,31.37289846,3845.8,3843.3,2.60189004]
[1760729089349,30.86002546,3845.8,3844.4,0.0021]
[1760729089671,30.40338046,3845.8,3844.4,0.0021]
[1760729090442,35.65518746,3845.8,3844.4,0.0021]
[1760729090636,30.77642946,3845.8,3843.0,0.1296]
[1760729090842,21.37138635,3845.8,3844.6,0.0021]
[1760729091246,9.51285135,3845.8,3845.6,0.001]
[1760729091440,20.45672735,3845.8,3845.6,0.001]
[1760729091662,22.52672735,3845.8,3845.6,0.001]
[1760729091897,20.79872735,3845.8,3845.6,0.001]
[1760729092097,22.52672735,3845.8,3845.6,0.001]
[1760729092602,34.92487335,3845.8,3845.6,0.001]
[1760729092889,34.51132935,3845.8,3845.6,0.001]
[1760729093290,2.60050969,3845.4,3845.3,1e-08]
[1760729093511,35.06036965,3845.4,3845.3,1e-08]
[1760729093668,35.86923584,3845.4,3845.3,1e-08]
[1760729095897,5.86923584,3845.4,3845.3,1e-08]
[1760729096064,36.65177887,3845.4,3845.3,1e-08]
[1760729096259,3.09344953,3845.3,3843.8,0.0021]
[1760729096478,2.60152449,3843.9,3843.8,0.0021]
[1760729097566,1.728,3844.3,3843.8,0.0021]
[1760729097963,1.728,3844.4,3843.8,0.0021]
[1760729098164,1.728,3844.1,3843.8,0.0021]
[1760729098403,2.60126221,3844.3,3843.8,0.0021]
[1760729098699,2.60112633,3844.5,3843.8,2.86407239]
[1760729098700,0.1296,3843.9,3843.8,2.86407239]
[1760729099273,0.1296,3844.3,3843.8,0.26248022]
[1760729099471,0.39301213,3845.8,3843.8,0.26248022]
[1760729099472,0.13298821,3845.8,3844.4,2.60112258]
[1760729099779,0.1296,3844.6,3844.5,2.60321848]
[1760729100096,0.1296,3844.6,3844.5,3.12366499]
[1760729100498,0.1296,3844.6,3844.5,0.52254651]
[1760729101191,0.1296,3844.6,3844.5,3.12366499]
[1760729101595,2.6003476,3845.7,3844.5,0.52254651]
[1760729101797,0.1296,3845.1,3845.0,2.60076952]
[1760729102004,0.1296,3845.1,3845.0,2.60286952]
[1760729102869,0.002,3845.9,3845.0,2.60286952]
[1760729103073,0.1296,3845.5,3845.3,2.60057288]
[1760729103311,0.1296,3845.5,3845.4,0.0021]
[1760729104401,0.1296,3845.5,3845.4,3.12294719]
[1760729104965,0.1296,3845.5,3845.4,0.5224375]
[1760729105172,0.002,3845.9,3845.6,2.60037186]
[1760729105400,0.1296,3845.8,3845.5,2.60254047]
[1760729105601,0.1296,3845.8,3845.6,2.60035046]
[1760729105805,2.60044207,3845.5,3845.4,0.02600509]
[1760729106119,2.60089829,3844.9,3843.8,2.603686]
[1760729106284,1.728,3845.7,3844.2,2.6012562]
[1760729106474,2.60089171,3844.9,3844.3,0.26243562]
[1760729106670,2.60096184,3844.8,3844.3,0.26033562]
[1760729106876,2.60096184,3844.8,3844.4,0.0021]
[1760729107105,2.60086885,3844.9,3844.4,0.0021]
[1760729107508,1.728,3845.3,3844.3,0.26033562]
[1760729107835,0.473,3845.5,3840.1,0.09]
[1760729107836,10.271613,3844.7,3843.2,0.0021]
[1760729108106,1.728,3844.8,3842.7,0.0021]
[1760729108107,2.60165092,3843.8,3842.7,0.0021]
[1760729108272,1.728,3844.3,3842.9,2.60220139]
[1760729108471,1.728,3844.2,3843.0,0.0021]
[1760729108707,1.728,3844.2,3841.7,15.0584506]
[1760729108708,2.60145681,3844.0,3841.7,0.0021]
[1760729108882,1.728,3843.5,3841.8,0.0021]
[1760729109088,2.60199937,3843.2,3842.3,2.60255188]
[1760729109312,2.60199937,3843.2,3842.4,2.60253045]
[1760729109496,0.36327211,3844.8,3842.5,0.02812472]
[1760729109681,0.2234,3844.9,3842.6,0.0021]
[1760729109881,1.728,3844.5,3843.8,2.60158923]
[1760729110189,1.728,3844.6,3844.3,0.001]
[1760729110401,0.2234,3844.9,3844.3,0.001]
[1760729110714,0.2234,3845.3,3844.3,0.001]
[1760729110915,4.32918614,3844.4,3844.3,0.001]
[1760729111214,5.11785576,3844.4,3844.3,0.001]